[Event "Late-Titled-Tuesday-Blitz-May-28-2024"]
[Site "Chess.com"]
[Date "2024.05.28"]
[Round "3"]
[White "dennisodessa"]
[Black "KNVB"]
[Result "0-1"]
[WhiteElo "2550"]
[BlackElo "2776"]
[TimeControl "180+1"]
[EndTime "14:27:05 PDT"]
[Termination "KNVB won by resignation"]

1. d4 {[%clk 0:03:00.3]} 1... e5 {[%clk 0:03:00.2]} 2. dxe5 {[%clk 0:03:00.1]}
2... Nc6 {[%clk 0:03:00.6]} 3. Nf3 {[%clk 0:02:59.9]} 3... Qe7 {[%clk
0:03:01.1]} 4. Nbd2 {[%clk 0:02:27.8]} 4... Nxe5 {[%clk 0:03:00.9]} 5. Nxe5
{[%clk 0:02:28.7]} 5... Qxe5 {[%clk 0:03:01.8]} 6. Nf3 {[%clk 0:02:29.2]} 6...
Qh5 {[%clk 0:03:02.2]} 7. c4 {[%clk 0:02:27.8]} 7... Nf6 {[%clk 0:02:58.1]} 8.
e3 {[%clk 0:02:27.8]} 8... Bb4+ {[%clk 0:02:50.9]} 9. Bd2 {[%clk 0:02:27.7]}
9... Qa5 {[%clk 0:02:51.7]} 10. Bd3 {[%clk 0:02:20.4]} 10... Bxd2+ {[%clk
0:02:50]} 11. Qxd2 {[%clk 0:02:21.2]} 11... Qxd2+ {[%clk 0:02:50.2]} 12. Kxd2
{[%clk 0:02:08.7]} 12... d6 {[%clk 0:02:51.1]} 13. Rac1 {[%clk 0:02:06]} 13...
c6 {[%clk 0:02:48.3]} 14. h3 {[%clk 0:02:05.6]} 14... Ke7 {[%clk 0:02:48.2]} 15.
Rhd1 {[%clk 0:02:05.6]} 15... Be6 {[%clk 0:02:47.6]} 16. Nd4 {[%clk 0:02:05.4]}
16... Rad8 {[%clk 0:02:46.6]} 17. Nf5+ {[%clk 0:02:04.2]} 17... Bxf5 {[%clk
0:02:46.8]} 18. Bxf5 {[%clk 0:02:05.1]} 18... g6 {[%clk 0:02:47.5]} 19. Bb1
{[%clk 0:02:01.5]} 19... a5 {[%clk 0:02:46.9]} 20. Ke2 {[%clk 0:01:57.5]} 20...
Nd7 {[%clk 0:02:42.6]} 21. h4 {[%clk 0:01:45]} 21... f5 {[%clk 0:02:37.7]} 22.
g3 {[%clk 0:01:44.9]} 22... Ne5 {[%clk 0:02:38.1]} 23. c5 {[%clk 0:01:37.6]}
23... d5 {[%clk 0:02:07]} 24. Rd4 {[%clk 0:01:29.9]} 24... Ra8 {[%clk
0:01:59.7]} 25. Bd3 {[%clk 0:01:02.2]} 25... a4 {[%clk 0:01:41.2]} 26. Bc2
{[%clk 0:00:57.9]} 26... Nc4 {[%clk 0:01:13.4]} 27. Bxa4 {[%clk 0:00:56.7]}
27... Rxa4 {[%clk 0:01:10.1]} 0-1

[Event "Late-Titled-Tuesday-Blitz-May-28-2024"]
[Site "Chess.com"]
[Date "2024.05.28"]
[Round "3"]
[White "ExchangeAB"]
[Black "whiteshirt_boi"]
[Result "0-1"]
[WhiteElo "2491"]
[BlackElo "2802"]
[TimeControl "180+1"]
[EndTime "14:27:14 PDT"]
[Termination "whiteshirt_boi won by resignation"]

1. d4 {[%clk 0:03:00.9]} 1... Nf6 {[%clk 0:03:00]} 2. Nf3 {[%clk 0:03:01.2]}
2... d5 {[%clk 0:02:59.7]} 3. Bf4 {[%clk 0:03:01.1]} 3... e6 {[%clk 0:02:51.8]}
4. e3 {[%clk 0:03:01.2]} 4... c5 {[%clk 0:02:50.1]} 5. c3 {[%clk 0:03:01.2]}
5... Nc6 {[%clk 0:02:50.3]} 6. Nbd2 {[%clk 0:03:00.8]} 6... Nh5 {[%clk
0:02:48.6]} 7. Bg5 {[%clk 0:03:00.3]} 7... f6 {[%clk 0:02:48.5]} 8. Bh4 {[%clk
0:02:59.5]} 8... g6 {[%clk 0:02:47.8]} 9. g4 {[%clk 0:02:40.1]} 9... Ng7 {[%clk
0:02:45.6]} 10. Bg3 {[%clk 0:02:40.4]} 10... cxd4 {[%clk 0:02:30.4]} 11. cxd4
{[%clk 0:02:31.6]} 11... Qb6 {[%clk 0:02:17]} 12. Qb3 {[%clk 0:02:30.4]} 12...
Qxb3 {[%clk 0:02:06.6]} 13. Nxb3 {[%clk 0:02:16.9]} 13... Bb4+ {[%clk
0:02:01.2]} 14. Nfd2 {[%clk 0:02:14.7]} 14... e5 {[%clk 0:02:01.5]} 15. h3
{[%clk 0:02:08.7]} 15... h5 {[%clk 0:01:53.5]} 16. Bg2 {[%clk 0:02:00.9]} 16...
exd4 {[%clk 0:01:37]} 17. Nxd4 {[%clk 0:01:58.4]} 17... hxg4 {[%clk 0:01:34.2]}
18. hxg4 {[%clk 0:01:51.9]} 18... Rxh1+ {[%clk 0:01:35.1]} 19. Bxh1 {[%clk
0:01:52.3]} 19... Bxg4 {[%clk 0:01:30]} 20. Bxd5 {[%clk 0:01:46.2]} 20... Nxd4
{[%clk 0:01:29.1]} 21. exd4 {[%clk 0:01:43.2]} 21... Rd8 {[%clk 0:01:29.4]} 22.
Bxb7 {[%clk 0:01:34.9]} 22... Rxd4 {[%clk 0:01:27.5]} 23. Bc6+ {[%clk
0:01:15.2]} 23... Kf7 {[%clk 0:01:20.1]} 24. f3 {[%clk 0:00:58.9]} 24... Bxd2+
{[%clk 0:01:16.3]} 25. Ke2 {[%clk 0:00:58.7]} 25... Be6 {[%clk 0:01:16.9]} 26.
b3 {[%clk 0:00:48.6]} 26... Nf5 {[%clk 0:01:12.8]} 27. Bb8 {[%clk 0:00:47.8]}
27... Bf4 {[%clk 0:01:09.7]} 28. Bxa7 {[%clk 0:00:44.6]} 28... Rd2+ {[%clk
0:01:05.3]} 29. Ke1 {[%clk 0:00:44.8]} 29... Rh2 {[%clk 0:01:04.5]} 30. Rd1
{[%clk 0:00:39]} 30... Rh1+ {[%clk 0:00:55.4]} 31. Ke2 {[%clk 0:00:39.4]} 31...
Ng3+ {[%clk 0:00:55.6]} 0-1

[Event "Late-Titled-Tuesday-Blitz-May-28-2024"]
[Site "Chess.com"]
[Date "2024.05.28"]
[Round "3"]
[White "temus_galaktionov"]
[Black "The_Sherman_Variation"]
[Result "1-0"]
[WhiteElo "2879"]
[BlackElo "2590"]
[TimeControl "180+1"]
[EndTime "14:27:17 PDT"]
[Termination "temus_galaktionov won by resignation"]

1. d4 {[%clk 0:03:00.9]} 1... d5 {[%clk 0:02:55.3]} 2. c4 {[%clk 0:03:00.5]}
2... e6 {[%clk 0:02:55.6]} 3. Nf3 {[%clk 0:03:00.4]} 3... Nf6 {[%clk 0:02:55.8]}
4. Nc3 {[%clk 0:03:00.2]} 4... Be7 {[%clk 0:02:54.2]} 5. Bf4 {[%clk 0:02:58.9]}
5... O-O {[%clk 0:02:51.5]} 6. e3 {[%clk 0:02:57.7]} 6... a6 {[%clk 0:02:51]} 7.
c5 {[%clk 0:02:56.7]} 7... a5 {[%clk 0:02:44.2]} 8. a3 {[%clk 0:02:51.6]} 8...
b6 {[%clk 0:02:39]} 9. b4 {[%clk 0:02:51.1]} 9... bxc5 {[%clk 0:02:28]} 10. bxc5
{[%clk 0:02:48.2]} 10... Ba6 {[%clk 0:02:27.9]} 11. Bxa6 {[%clk 0:02:46.8]}
11... Nxa6 {[%clk 0:02:28.8]} 12. O-O {[%clk 0:02:46.5]} 12... Nh5 {[%clk
0:02:23.4]} 13. Bg3 {[%clk 0:02:42.2]} 13... Nxg3 {[%clk 0:02:22.1]} 14. hxg3
{[%clk 0:02:43.1]} 14... f6 {[%clk 0:02:11.7]} 15. Rb1 {[%clk 0:02:35.2]} 15...
Qd7 {[%clk 0:02:09]} 16. Re1 {[%clk 0:02:32.2]} 16... Rfd8 {[%clk 0:02:04.9]}
17. e4 {[%clk 0:02:26.8]} 17... dxe4 {[%clk 0:02:00.2]} 18. Rxe4 {[%clk
0:02:27.7]} 18... e5 {[%clk 0:01:53.5]} 19. Qe2 {[%clk 0:02:07.3]} 19... Qc6
{[%clk 0:01:29]} 20. dxe5 {[%clk 0:02:01.3]} 20... Nxc5 {[%clk 0:01:26.6]} 21.
Qc4+ {[%clk 0:01:53.1]} 21... Kh8 {[%clk 0:01:26]} 22. exf6 {[%clk 0:01:46.5]}
22... Bxf6 {[%clk 0:01:23.7]} 23. Ne5 {[%clk 0:01:46.5]} 23... Bxe5 {[%clk
0:01:11.9]} 24. Rxe5 {[%clk 0:01:47.4]} 24... Qg6 {[%clk 0:00:38]} 25. Rxc5
{[%clk 0:01:44.1]} 25... Ra6 {[%clk 0:00:26.8]} 26. Re1 {[%clk 0:01:37]} 26...
Rf6 {[%clk 0:00:19.3]} 27. Rxc7 {[%clk 0:01:35.8]} 27... Qc2 {[%clk 0:00:19.3]}
28. Ne4 {[%clk 0:01:29.9]} 28... Qd1 {[%clk 0:00:17]} 29. Rxd1 {[%clk
0:01:21.6]} 29... Rxd1+ {[%clk 0:00:17.9]} 30. Qf1 {[%clk 0:01:21.7]} 1-0

[Event "Late-Titled-Tuesday-Blitz-May-28-2024"]
[Site "Chess.com"]
[Date "2024.05.28"]
[Round "3"]
[White "BattlestarGalactica04"]
[Black "FuenfgegenWilly"]
[Result "0-1"]
[WhiteElo "2184"]
[BlackElo "2451"]
[TimeControl "180+1"]
[EndTime "14:27:19 PDT"]
[Termination "FuenfgegenWilly won by resignation"]

1. e4 {[%clk 0:03:00.9]} 1... c5 {[%clk 0:02:57.8]} 2. d4 {[%clk 0:03:00.1]}
2... cxd4 {[%clk 0:02:58.7]} 3. c3 {[%clk 0:03:00.5]} 3... dxc3 {[%clk
0:02:59.1]} 4. Nxc3 {[%clk 0:03:01.3]} 4... e6 {[%clk 0:02:57.6]} 5. Nf3 {[%clk
0:03:01.7]} 5... a6 {[%clk 0:02:58.1]} 6. Bc4 {[%clk 0:03:02.1]} 6... Qc7 {[%clk
0:02:58.7]} 7. Bb3 {[%clk 0:03:00.5]} 7... Nc6 {[%clk 0:02:58.7]} 8. O-O {[%clk
0:02:57.7]} 8... Na5 {[%clk 0:02:58.4]} 9. Be3 {[%clk 0:02:44.4]} 9... Nxb3
{[%clk 0:02:57.9]} 10. axb3 {[%clk 0:02:44.9]} 10... Ne7 {[%clk 0:02:56.7]} 11.
Rc1 {[%clk 0:02:44.1]} 11... Qb8 {[%clk 0:02:53.7]} 12. Bb6 {[%clk 0:02:41.8]}
12... Ng6 {[%clk 0:02:29.6]} 13. Nd5 {[%clk 0:02:39.7]} 13... exd5 {[%clk
0:02:28]} 14. exd5 {[%clk 0:02:40.6]} 14... Bd6 {[%clk 0:02:01.9]} 15. Re1+
{[%clk 0:02:39.9]} 15... Ne7 {[%clk 0:02:01]} 16. Ng5 {[%clk 0:01:27.2]} 16...
O-O {[%clk 0:01:50.3]} 17. Qh5 {[%clk 0:01:25.3]} 17... h6 {[%clk 0:01:50.3]}
18. Ne4 {[%clk 0:01:25.1]} 18... Be5 {[%clk 0:01:38.3]} 19. d6 {[%clk
0:01:01.3]} 19... Bxd6 {[%clk 0:01:31]} 20. Nxd6 {[%clk 0:01:02.2]} 20... Qxd6
{[%clk 0:01:30.6]} 21. Bc5 {[%clk 0:01:02.7]} 21... Qg6 {[%clk 0:01:30]} 22. Qd1
{[%clk 0:00:16.3]} 22... d6 {[%clk 0:01:29.6]} 23. Bxd6 {[%clk 0:00:14.8]} 23...
Rd8 {[%clk 0:01:26.9]} 24. Rxe7 {[%clk 0:00:13.6]} 24... Rxd6 {[%clk 0:01:22.9]}
25. Re8+ {[%clk 0:00:13.2]} 25... Kh7 {[%clk 0:01:23.1]} 26. Qf3 {[%clk
0:00:13.7]} 26... Bg4 {[%clk 0:01:18]} 27. Qg3 {[%clk 0:00:13.3]} 27... Rxe8
{[%clk 0:01:17.3]} 0-1

[Event "Late-Titled-Tuesday-Blitz-May-28-2024"]
[Site "Chess.com"]
[Date "2024.05.28"]
[Round "3"]
[White "NikaVolkov"]
[Black "FairChess_on_YouTube"]
[Result "0-1"]
[WhiteElo "2756"]
[BlackElo "3082"]
[TimeControl "180+1"]
[EndTime "14:27:20 PDT"]
[Termination "FairChess_on_YouTube won by resignation"]

1. d4 {[%clk 0:03:00.9]} 1... Nf6 {[%clk 0:02:59.7]} 2. Nf3 {[%clk 0:03:01]}
2... e6 {[%clk 0:02:59.9]} 3. e3 {[%clk 0:03:01.5]} 3... b6 {[%clk 0:02:59.8]}
4. Be2 {[%clk 0:03:01.5]} 4... Bb7 {[%clk 0:03:00.4]} 5. O-O {[%clk 0:03:02]}
5... c5 {[%clk 0:03:00.9]} 6. c4 {[%clk 0:03:02.3]} 6... cxd4 {[%clk 0:02:58.9]}
7. Nxd4 {[%clk 0:03:02.2]} 7... Nc6 {[%clk 0:02:57.5]} 8. Nc3 {[%clk 0:03:02.4]}
8... Be7 {[%clk 0:02:57]} 9. b3 {[%clk 0:03:02.8]} 9... Nxd4 {[%clk 0:02:56.6]}
10. Qxd4 {[%clk 0:03:02.7]} 10... O-O {[%clk 0:02:54.7]} 11. Bb2 {[%clk
0:03:03.3]} 11... Qc7 {[%clk 0:02:53.5]} 12. Nb5 {[%clk 0:03:00.4]} 12... Qc5
{[%clk 0:02:53.4]} 13. Qh4 {[%clk 0:02:53]} 13... Qf5 {[%clk 0:02:38.4]} 14. Nd4
{[%clk 0:01:55.8]} 14... Qg6 {[%clk 0:02:36.7]} 15. Qg3 {[%clk 0:01:47.1]} 15...
Ne4 {[%clk 0:02:31.9]} 16. Qxg6 {[%clk 0:01:22.9]} 16... hxg6 {[%clk 0:02:32.8]}
17. Rfd1 {[%clk 0:01:22.7]} 17... Rfd8 {[%clk 0:02:32.3]} 18. Bf3 {[%clk
0:01:20.5]} 18... f5 {[%clk 0:02:31.7]} 19. Rac1 {[%clk 0:01:20.3]} 19... g5
{[%clk 0:02:31.7]} 20. h3 {[%clk 0:01:20.1]} 20... a6 {[%clk 0:02:29.4]} 21. Ne2
{[%clk 0:01:13.6]} 21... Bc5 {[%clk 0:02:28.1]} 22. a3 {[%clk 0:01:07.3]} 22...
a5 {[%clk 0:02:27.8]} 23. Nc3 {[%clk 0:01:07]} 23... Nxc3 {[%clk 0:02:27.6]} 24.
Rxc3 {[%clk 0:01:03.5]} 24... Bxf3 {[%clk 0:02:26.9]} 25. gxf3 {[%clk
0:01:04.4]} 25... Kf7 {[%clk 0:02:25.2]} 26. Rcd3 {[%clk 0:01:04.7]} 26... d6
{[%clk 0:02:24.8]} 27. Kg2 {[%clk 0:01:04.3]} 27... Rh8 {[%clk 0:02:13.6]} 28.
Rb1 {[%clk 0:01:01.4]} 28... Rh4 {[%clk 0:02:06.9]} 29. Bc1 {[%clk 0:00:52.1]}
29... d5 {[%clk 0:02:05.3]} 30. cxd5 {[%clk 0:00:52.7]} 30... Rah8 {[%clk
0:02:03.2]} 31. dxe6+ {[%clk 0:00:50.5]} 31... Kxe6 {[%clk 0:02:04.1]} 32. Kf1
{[%clk 0:00:50.2]} 32... Rxh3 {[%clk 0:02:03.5]} 33. b4 {[%clk 0:00:50.8]} 33...
axb4 {[%clk 0:01:57]} 34. axb4 {[%clk 0:00:51.7]} 34... Be7 {[%clk 0:01:54.8]}
35. Ke2 {[%clk 0:00:51.2]} 35... Rh1 {[%clk 0:01:54.5]} 36. Rd1 {[%clk 0:00:42]}
36... Rxd1 {[%clk 0:01:51.9]} 37. Kxd1 {[%clk 0:00:42.9]} 37... Rh1+ {[%clk
0:01:52.2]} 38. Ke2 {[%clk 0:00:43.2]} 38... g4 {[%clk 0:01:44.6]} 39. fxg4
{[%clk 0:00:37.6]} 39... fxg4 {[%clk 0:01:45.5]} 40. e4 {[%clk 0:00:18]} 40...
Bg5 {[%clk 0:01:42.9]} 0-1

[Event "Late-Titled-Tuesday-Blitz-May-28-2024"]
[Site "Chess.com"]
[Date "2024.05.28"]
[Round "3"]
[White "EsmeraldasAnderson03"]
[Black "nindjaxx8"]
[Result "0-1"]
[WhiteElo "2465"]
[BlackElo "2639"]
[TimeControl "180+1"]
[EndTime "14:27:22 PDT"]
[Termination "nindjaxx8 won by resignation"]

1. d4 {[%clk 0:03:00.9]} 1... d5 {[%clk 0:02:56.2]} 2. c4 {[%clk 0:03:00.7]}
2... e6 {[%clk 0:02:50.9]} 3. cxd5 {[%clk 0:03:00.7]} 3... exd5 {[%clk 0:02:48]}
4. Nc3 {[%clk 0:03:01.6]} 4... Nf6 {[%clk 0:02:45.4]} 5. Qc2 {[%clk 0:03:00.5]}
5... Be7 {[%clk 0:02:43.3]} 6. Nf3 {[%clk 0:03:00.1]} 6... O-O {[%clk
0:02:43.8]} 7. Bg5 {[%clk 0:03:00.5]} 7... b6 {[%clk 0:02:41]} 8. e3 {[%clk
0:03:00.2]} 8... Bb7 {[%clk 0:02:40.8]} 9. Bd3 {[%clk 0:02:59.9]} 9... h6 {[%clk
0:02:41.3]} 10. Bh4 {[%clk 0:02:59.7]} 10... Nbd7 {[%clk 0:02:41.5]} 11. O-O
{[%clk 0:02:59.3]} 11... c5 {[%clk 0:02:41.7]} 12. dxc5 {[%clk 0:02:56.9]} 12...
bxc5 {[%clk 0:02:42.3]} 13. Rfd1 {[%clk 0:02:57.4]} 13... Rc8 {[%clk 0:02:42.7]}
14. Rac1 {[%clk 0:02:47]} 14... d4 {[%clk 0:02:29.5]} 15. Ne4 {[%clk 0:02:43.6]}
15... c4 {[%clk 0:01:46.9]} 16. Nxf6+ {[%clk 0:02:10.3]} 16... Bxf6 {[%clk
0:01:47.8]} 17. Bh7+ {[%clk 0:01:55.8]} 17... Kh8 {[%clk 0:01:45.9]} 18. Bxf6
{[%clk 0:01:56.2]} 18... Qxf6 {[%clk 0:01:39.1]} 19. Rxd4 {[%clk 0:01:56]} 19...
Bxf3 {[%clk 0:01:35.6]} 20. gxf3 {[%clk 0:01:41.8]} 20... Ne5 {[%clk 0:01:31.6]}
21. Rf4 {[%clk 0:01:27.5]} 21... Qg5+ {[%clk 0:01:24.1]} 22. Kh1 {[%clk
0:01:25.9]} 22... g6 {[%clk 0:01:21.6]} 23. Rg1 {[%clk 0:00:24.9]} 23... Qh5
{[%clk 0:01:18.9]} 24. Qe4 {[%clk 0:00:22.6]} 24... Kxh7 {[%clk 0:01:17.8]} 25.
Rh4 {[%clk 0:00:14.1]} 25... Qxf3+ {[%clk 0:01:17.3]} 26. Qxf3 {[%clk
0:00:10.9]} 26... Nxf3 {[%clk 0:01:18.2]} 27. Rf4 {[%clk 0:00:07.6]} 27... Nxg1
{[%clk 0:01:18.2]} 28. Kxg1 {[%clk 0:00:08.5]} 28... Kg7 {[%clk 0:01:17.9]} 29.
b3 {[%clk 0:00:08.4]} 29... c3 {[%clk 0:01:17.8]} 0-1

[Event "Late-Titled-Tuesday-Blitz-May-28-2024"]
[Site "Chess.com"]
[Date "2024.05.28"]
[Round "3"]
[White "cassoulet"]
[Black "FredddieCroderg"]
[Result "1-0"]
[WhiteElo "2721"]
[BlackElo "2280"]
[TimeControl "180+1"]
[EndTime "14:27:25 PDT"]
[Termination "cassoulet won on time"]

1. d4 {[%clk 0:03:00.9]} 1... d5 {[%clk 0:02:54.6]} 2. Bf4 {[%clk 0:03:00.1]}
2... Nf6 {[%clk 0:02:52.1]} 3. e3 {[%clk 0:03:00]} 3... e6 {[%clk 0:02:50.7]} 4.
Nd2 {[%clk 0:03:00.2]} 4... Bd6 {[%clk 0:02:48.3]} 5. Bg3 {[%clk 0:02:59.6]}
5... O-O {[%clk 0:02:46.8]} 6. Ngf3 {[%clk 0:02:59.7]} 6... c5 {[%clk
0:02:45.8]} 7. c3 {[%clk 0:03:00]} 7... Nc6 {[%clk 0:02:39.6]} 8. Bd3 {[%clk
0:02:59.7]} 8... b6 {[%clk 0:02:33.7]} 9. Qe2 {[%clk 0:02:59.5]} 9... Bb7 {[%clk
0:02:29.8]} 10. Ne5 {[%clk 0:02:57.2]} 10... Qc7 {[%clk 0:02:28]} 11. f4 {[%clk
0:02:56.5]} 11... Ne7 {[%clk 0:02:26.1]} 12. Bh4 {[%clk 0:02:52.3]} 12... Ne4
{[%clk 0:02:17.8]} 13. Nxe4 {[%clk 0:02:29.5]} 13... dxe4 {[%clk 0:02:15.7]} 14.
Bc2 {[%clk 0:02:29.7]} 14... Nf5 {[%clk 0:02:12.6]} 15. Bf2 {[%clk 0:02:27.3]}
15... cxd4 {[%clk 0:02:11.8]} 16. exd4 {[%clk 0:02:25.5]} 16... e3 {[%clk
0:02:06]} 17. Bxe3 {[%clk 0:02:25.2]} 17... Nxe3 {[%clk 0:01:52.4]} 18. Qxe3
{[%clk 0:02:26.1]} 18... Bxg2 {[%clk 0:01:51.4]} 19. Rg1 {[%clk 0:02:25.6]}
19... Bb7 {[%clk 0:01:35.2]} 20. O-O-O {[%clk 0:02:23.4]} 20... g6 {[%clk
0:01:33.5]} 21. h4 {[%clk 0:02:18.2]} 21... f5 {[%clk 0:01:22.7]} 22. h5 {[%clk
0:02:13.4]} 22... Bxe5 {[%clk 0:01:22.1]} 23. fxe5 {[%clk 0:02:08.2]} 23... Rf7
{[%clk 0:01:02.8]} 24. hxg6 {[%clk 0:02:07.1]} 24... Rg7 {[%clk 0:01:02.6]} 25.
gxh7+ {[%clk 0:02:03.4]} 25... Kh8 {[%clk 0:01:02.4]} 26. Qh6 {[%clk 0:01:59.2]}
26... Re8 {[%clk 0:00:43.4]} 27. Rg6 {[%clk 0:01:47.2]} 27... Rxh7 {[%clk
0:00:32.7]} 28. Qg5 {[%clk 0:01:42.5]} 28... Qf7 {[%clk 0:00:30.1]} 29. Rg1
{[%clk 0:01:40.5]} 29... a6 {[%clk 0:00:12]} 30. Bd1 {[%clk 0:01:28.2]} 30... b5
{[%clk 0:00:10.1]} 31. Bh5 {[%clk 0:01:27.8]} 31... Qe7 {[%clk 0:00:09.4]} 32.
Rg8+ {[%clk 0:01:26.8]} 1-0

[Event "Late-Titled-Tuesday-Blitz-May-28-2024"]
[Site "Chess.com"]
[Date "2024.05.28"]
[Round "3"]
[White "CristhianPortalR"]
[Black "carloseduar100"]
[Result "1-0"]
[WhiteElo "2544"]
[BlackElo "2290"]
[TimeControl "180+1"]
[EndTime "14:27:29 PDT"]
[Termination "CristhianPortalR won by resignation"]

1. e4 {[%clk 0:03:00.9]} 1... e6 {[%clk 0:02:52.5]} 2. d4 {[%clk 0:03:00.3]}
2... d5 {[%clk 0:02:53.4]} 3. Nc3 {[%clk 0:03:00.3]} 3... Nf6 {[%clk 0:02:47.7]}
4. e5 {[%clk 0:02:59.6]} 4... Nfd7 {[%clk 0:02:46.1]} 5. f4 {[%clk 0:03:00]}
5... c5 {[%clk 0:02:46]} 6. Nf3 {[%clk 0:03:00.1]} 6... Nc6 {[%clk 0:02:46.9]}
7. Be3 {[%clk 0:02:59.8]} 7... Qb6 {[%clk 0:02:47.5]} 8. a3 {[%clk 0:02:59.3]}
8... cxd4 {[%clk 0:02:45.8]} 9. Nxd4 {[%clk 0:02:47.1]} 9... Bc5 {[%clk
0:02:25.5]} 10. Na4 {[%clk 0:02:44.3]} 10... Qa5+ {[%clk 0:02:25.6]} 11. b4
{[%clk 0:02:44.9]} 11... Nxb4 {[%clk 0:02:25.9]} 12. axb4 {[%clk 0:02:41.3]}
12... Bxb4+ {[%clk 0:02:25.1]} 13. Bd2 {[%clk 0:02:41.4]} 13... O-O {[%clk
0:02:21.7]} 14. Bxb4 {[%clk 0:02:37.4]} 14... Qxb4+ {[%clk 0:02:21.8]} 15. c3
{[%clk 0:02:38]} 15... Qe7 {[%clk 0:02:22.2]} 16. Bd3 {[%clk 0:02:35.5]} 16...
g6 {[%clk 0:02:21.5]} 17. O-O {[%clk 0:02:34.8]} 17... a6 {[%clk 0:02:19.8]} 18.
Nb2 {[%clk 0:02:12.6]} 18... Qc5 {[%clk 0:02:04.3]} 19. Qd2 {[%clk 0:02:08.5]}
19... b5 {[%clk 0:02:04.4]} 20. Kh1 {[%clk 0:01:47.2]} 20... Bb7 {[%clk
0:01:53.6]} 21. Nb3 {[%clk 0:01:45.2]} 21... Qc7 {[%clk 0:01:51.1]} 22. Nd1
{[%clk 0:01:41.4]} 22... Nb6 {[%clk 0:01:46.4]} 23. Nf2 {[%clk 0:01:40.4]} 23...
Nc4 {[%clk 0:01:45.6]} 24. Qc1 {[%clk 0:01:37.1]} 24... Rac8 {[%clk 0:01:44.9]}
25. Ng4 {[%clk 0:01:33.3]} 25... h5 {[%clk 0:01:36]} 26. Nf6+ {[%clk 0:01:31.5]}
26... Kg7 {[%clk 0:01:36.2]} 27. Nd4 {[%clk 0:01:21.2]} 27... Nb6 {[%clk
0:01:20.5]} 28. Qe3 {[%clk 0:01:15.2]} 28... Nd7 {[%clk 0:01:12.4]} 29. f5
{[%clk 0:01:00.3]} 29... exf5 {[%clk 0:01:05.4]} 30. Nxf5+ {[%clk 0:00:56.5]}
1-0

[Event "Late-Titled-Tuesday-Blitz-May-28-2024"]
[Site "Chess.com"]
[Date "2024.05.28"]
[Round "3"]
[White "LastGladiator1"]
[Black "Tibmat"]
[Result "1-0"]
[WhiteElo "2991"]
[BlackElo "2683"]
[TimeControl "180+1"]
[EndTime "14:27:31 PDT"]
[Termination "LastGladiator1 won by resignation"]

1. c4 {[%clk 0:03:00.9]} 1... b6 {[%clk 0:02:56.9]} 2. d4 {[%clk 0:03:00.4]}
2... Bb7 {[%clk 0:02:52.6]} 3. Nc3 {[%clk 0:03:00.5]} 3... Nf6 {[%clk
0:02:52.2]} 4. Qc2 {[%clk 0:03:00.1]} 4... d5 {[%clk 0:02:51.6]} 5. cxd5 {[%clk
0:03:00.3]} 5... Nxd5 {[%clk 0:02:52.5]} 6. e4 {[%clk 0:03:00.7]} 6... Nxc3
{[%clk 0:02:52.7]} 7. bxc3 {[%clk 0:03:01.3]} 7... e6 {[%clk 0:02:53.6]} 8. Nf3
{[%clk 0:02:58.3]} 8... Be7 {[%clk 0:02:51.6]} 9. h4 {[%clk 0:02:48.3]} 9... c5
{[%clk 0:02:49.6]} 10. Bb5+ {[%clk 0:02:46]} 10... Bc6 {[%clk 0:02:48.9]} 11.
Bd3 {[%clk 0:02:40.4]} 11... Nd7 {[%clk 0:02:27.4]} 12. O-O {[%clk 0:02:26.7]}
12... O-O {[%clk 0:02:23.1]} 13. d5 {[%clk 0:02:23.1]} 13... exd5 {[%clk
0:02:23.7]} 14. exd5 {[%clk 0:02:24]} 14... Bxd5 {[%clk 0:02:24.4]} 15. Bxh7+
{[%clk 0:02:24.1]} 15... Kh8 {[%clk 0:02:25.2]} 16. Be4 {[%clk 0:02:09.4]} 16...
Nf6 {[%clk 0:02:25.2]} 17. Bxd5 {[%clk 0:02:08.9]} 17... Qxd5 {[%clk 0:02:26.1]}
18. Re1 {[%clk 0:02:07.7]} 18... Rfe8 {[%clk 0:02:19.8]} 19. c4 {[%clk
0:02:07.2]} 19... Qb7 {[%clk 0:01:52.7]} 20. Ng5 {[%clk 0:01:59.8]} 20... Kg8
{[%clk 0:00:41.6]} 21. Bb2 {[%clk 0:01:48.6]} 21... g6 {[%clk 0:00:42]} 22. Re6
{[%clk 0:01:39.2]} 22... Bd8 {[%clk 0:00:13.5]} 23. Rxf6 {[%clk 0:01:24.5]}
23... Bxf6 {[%clk 0:00:12.9]} 24. Bxf6 {[%clk 0:01:25.4]} 24... Qc6 {[%clk
0:00:09.5]} 25. Bb2 {[%clk 0:01:23.9]} 25... Re7 {[%clk 0:00:08.2]} 26. h5
{[%clk 0:01:19.8]} 26... Rae8 {[%clk 0:00:06]} 27. h6 {[%clk 0:01:19.4]} 27...
Re1+ {[%clk 0:00:06.4]} 28. Rxe1 {[%clk 0:01:16.6]} 28... Rxe1+ {[%clk
0:00:07.3]} 29. Kh2 {[%clk 0:01:17]} 29... Qd6+ {[%clk 0:00:05.2]} 30. g3 {[%clk
0:01:17]} 1-0

[Event "Late-Titled-Tuesday-Blitz-May-28-2024"]
[Site "Chess.com"]
[Date "2024.05.28"]
[Round "3"]
[White "JonasGallasch"]
[Black "OIAM03"]
[Result "1-0"]
[WhiteElo "2423"]
[BlackElo "2038"]
[TimeControl "180+1"]
[EndTime "14:27:34 PDT"]
[Termination "JonasGallasch won on time"]

1. d4 {[%clk 0:03:00.9]} 1... Nf6 {[%clk 0:02:59.5]} 2. Bg5 {[%clk 0:02:57.9]}
2... g6 {[%clk 0:02:57.7]} 3. Bxf6 {[%clk 0:02:57]} 3... exf6 {[%clk 0:02:57.8]}
4. e3 {[%clk 0:02:57.5]} 4... Bg7 {[%clk 0:02:57.9]} 5. Nf3 {[%clk 0:02:57.7]}
5... O-O {[%clk 0:02:57.7]} 6. c4 {[%clk 0:02:56.7]} 6... d5 {[%clk 0:02:57]} 7.
Nc3 {[%clk 0:02:56.3]} 7... c6 {[%clk 0:02:56.7]} 8. cxd5 {[%clk 0:02:52.4]}
8... cxd5 {[%clk 0:02:55.8]} 9. Qb3 {[%clk 0:02:53.1]} 9... Nc6 {[%clk
0:02:39.8]} 10. Qxd5 {[%clk 0:02:48]} 10... Qb6 {[%clk 0:02:22.5]} 11. Qb5
{[%clk 0:02:46.3]} 11... Qc7 {[%clk 0:01:12.9]} 12. Be2 {[%clk 0:02:44.3]} 12...
Bd7 {[%clk 0:01:09.3]} 13. Qb3 {[%clk 0:02:36.9]} 13... Na5 {[%clk 0:00:46.3]}
14. Qd1 {[%clk 0:02:23.9]} 14... Nc4 {[%clk 0:00:42]} 15. Bxc4 {[%clk
0:02:20.1]} 15... Qxc4 {[%clk 0:00:42]} 16. Qe2 {[%clk 0:02:20.6]} 16... Be6
{[%clk 0:00:37.5]} 17. Qxc4 {[%clk 0:02:12.6]} 17... Bxc4 {[%clk 0:00:37.5]} 18.
Nd2 {[%clk 0:02:09.2]} 18... Ba6 {[%clk 0:00:36.3]} 19. Nde4 {[%clk 0:02:06.5]}
19... f5 {[%clk 0:00:35.5]} 20. Nc5 {[%clk 0:02:05.6]} 20... Bc4 {[%clk
0:00:30.7]} 21. b3 {[%clk 0:02:04.2]} 21... Be6 {[%clk 0:00:30.4]} 22. O-O
{[%clk 0:01:58.8]} 22... b6 {[%clk 0:00:28.7]} 23. Nxe6 {[%clk 0:01:57.6]} 23...
fxe6 {[%clk 0:00:28.8]} 24. Rac1 {[%clk 0:01:56]} 24... Rfd8 {[%clk 0:00:26.8]}
25. Nb5 {[%clk 0:01:51.1]} 25... e5 {[%clk 0:00:23.3]} 26. Nc7 {[%clk
0:01:33.9]} 26... Rab8 {[%clk 0:00:20.4]} 27. Ne6 {[%clk 0:01:31.8]} 27... exd4
{[%clk 0:00:16]} 28. Nxd8 {[%clk 0:01:30]} 28... Rxd8 {[%clk 0:00:15.9]} 29.
exd4 {[%clk 0:01:30.1]} 29... Rxd4 {[%clk 0:00:16]} 30. Rfd1 {[%clk 0:01:29.3]}
30... Rxd1+ {[%clk 0:00:13.3]} 31. Rxd1 {[%clk 0:01:30.2]} 31... Bc3 {[%clk
0:00:10.2]} 32. Rd8+ {[%clk 0:01:28.9]} 32... Kf7 {[%clk 0:00:07]} 33. Rd7+
{[%clk 0:01:29.5]} 33... Ke6 {[%clk 0:00:05.5]} 34. Rxa7 {[%clk 0:01:30.4]} 1-0